bitfinex-derivatives/quotes_ETHF0:USTF0_20250831
["timestamp","ask_amount","ask_price","bid_price","bid_amount"]
[1756633647578,0.2025,4465.7,4465.6,0.4762]
[1756633648075,0.4938,4465.7,4465.6,0.4762]
[1756633649678,3.4991,4466.1,4465.6,0.4762]
[1756633649877,3.4991,4466.1,4465.0,3.2078]
[1756633649878,1.30202666,4466.0,4465.9,0.4762]
[1756633651874,1.30202666,4466.0,4465.9,0.1942]
[1756633652679,1.30202666,4466.0,4465.9,0.4762]
[1756633653776,0.2913,4465.9,4465.1,0.282]
[1756633654075,0.4938,4465.2,4465.1,0.70013999]
[1756633654279,0.4938,4465.2,4465.1,0.4762]
[1756633654481,0.4938,4465.2,4465.1,0.70016]
[1756633654679,0.4938,4465.2,4465.1,0.4762]
[1756633657474,0.4938,4465.1,4465.0,3.2078]
[1756633657782,1.0761496,4465.1,4465.0,3.6916]
[1756633658278,1.3031496,4465.1,4465.0,3.6916]
[1756633658481,1.3031496,4465.1,4464.5,3.4906]
[1756633658675,0.4847,4464.6,4464.5,3.6916]
[1756633660277,0.4847,4465.0,4464.9,0.201]
[1756633660481,1.06659372,4465.0,4464.9,0.4838]
[1756633660977,1.29359372,4465.0,4464.9,0.4838]
[1756633661183,0.77589372,4465.0,4464.9,0.4838]
[1756633661572,1.00289372,4465.0,4464.9,0.4838]
[1756633661773,0.77589372,4465.0,4464.9,0.4838]
[1756633662273,1.06659372,4465.0,4464.9,0.4838]
[1756633662778,0.227,4465.1,4464.9,0.4838]
[1756633663083,0.7117,4465.1,4465.0,0.4838]
[1756633663274,1.06633731,4465.1,4465.0,0.4838]
[1756633663678,1.29333731,4465.1,4465.0,0.4838]
[1756633664972,1.06633731,4465.1,4465.0,0.4838]
[1756633665176,0.227,4465.5,4465.4,0.201]
[1756633665378,0.7117,4465.5,4465.4,0.4838]
[1756633667176,0.227,4465.5,4465.4,0.4838]
[1756633667376,0.227,4465.7,4465.4,0.201]
[1756633667585,0.7117,4465.7,4465.6,0.4838]
[1756633667982,0.4847,4465.7,4465.6,0.4838]
[1756633668182,0.7117,4465.7,4465.6,0.4838]
[1756633668584,0.4847,4465.7,4465.6,0.4838]
[1756633668786,0.7117,4465.7,4465.6,0.4838]
[1756633670184,0.7117,4465.7,4465.0,3.2078]
[1756633670387,0.7117,4465.7,4465.1,0.4838]
[1756633670388,0.194,4465.2,4465.1,0.4838]
[1756633670586,0.4847,4465.2,4465.1,0.4838]
[1756633670790,0.227,4465.4,4465.1,0.201]
[1756633671089,0.227,4466.1,4465.9,0.201]
[1756633671290,3.2078,4466.5,4466.0,0.4838]
[1756633671586,0.194,4467.5,4467.4,0.201]
[1756633671782,0.194,4467.5,4467.4,0.4838]
[1756633671987,0.4847,4467.5,4467.4,0.4838]
[1756633672289,0.4847,4467.5,4467.4,0.201]
[1756633672790,0.4847,4467.5,4467.4,0.4838]
[1756633675492,0.194,4467.6,4467.5,0.4838]
[1756633675692,0.4847,4467.6,4467.5,0.4838]
[1756633676685,0.194,4467.6,4467.5,0.4838]
[1756633677187,0.4847,4467.6,4467.5,0.4838]
[1756633678088,0.194,4467.6,4467.5,0.4838]
[1756633678287,0.228,4467.9,4467.6,0.2828]
[1756633678486,0.4847,4467.9,4467.8,0.201]
[1756633678687,0.4847,4468.3,4468.2,0.201]
[1756633678886,0.7127,4468.3,4468.2,0.4838]
[1756633679888,0.4847,4468.3,4468.2,0.4838]
[1756633680088,0.7117,4468.3,4468.2,0.4838]
[1756633680488,0.4847,4468.3,4468.2,0.4838]
[1756633680694,0.7117,4468.3,4468.2,0.4838]
[1756633682697,32.258,4468.9,4468.3,0.2828]
[1756633682894,32.258,4468.9,4468.8,0.4838]
[1756633683096,32.679,4468.9,4468.8,0.4838]
[1756633683299,32.9697,4468.9,4468.8,0.4838]
[1756633683687,0.4847,4468.9,4468.8,0.4838]
[1756633686094,0.2907,4468.3,4468.2,3.2078]
[1756633686295,0.4847,4468.3,4467.8,0.2828]
[1756633686598,0.4847,4468.2,4468.1,0.4838]
[1756633687188,0.227,4468.9,4468.2,0.2828]
[1756633687393,0.421,4468.9,4468.8,0.4838]
[1756633687593,0.7117,4468.9,4468.8,0.4838]
[1756633687796,0.4847,4468.9,4468.8,0.4838]
[1756633687993,0.2981,4469.3,4468.9,0.2844]
[1756633688200,0.4939,4469.3,4469.2,0.4714]
[1756633688699,0.1958,4468.8,4468.7,3.3948]
[1756633688900,0.4939,4468.8,4468.7,3.6792]
[1756633689699,0.7219,4468.8,4468.0,3.2078]
[1756633689902,0.2981,4468.7,4468.1,0.2844]
[1756633690802,0.4939,4468.7,4468.6,0.4714]
[1756633692605,0.1958,4468.7,4468.6,0.4714]
[1756633692900,0.4939,4468.7,4468.6,0.4714]
[1756633693100,0.1958,4468.7,4468.1,0.2844]
[1756633693301,0.1958,4468.2,4468.1,0.4714]
[1756633693699,0.2981,4468.4,4468.1,0.4714]
[1756633693899,0.2981,4468.4,4468.1,0.187]
[1756633694199,0.4939,4468.4,4468.3,0.4714]
[1756633695297,0.1958,4468.1,4468.0,3.4922]
[1756633695600,0.1958,4468.1,4468.0,3.6792]
[1756633695601,0.4939,4468.1,4468.0,3.6792]
[1756633697398,0.1958,4468.1,4468.0,3.6792]
[1756633697603,0.4939,4468.1,4468.0,3.6792]
[1756633698610,3.2078,4469.0,4468.1,0.2844]
[1756633698611,0.228,4468.7,4468.1,0.2844]
[1756633698911,0.228,4468.7,4468.6,0.4714]
[1756633698912,0.7219,4468.7,4468.6,0.4714]
[1756633699104,1.30149378,4468.7,4468.6,0.4714]
[1756633699311,1.07349378,4468.7,4468.6,0.187]
[1756633700310,0.77539378,4468.7,4468.1,0.2844]
[1756633700512,0.87769378,4468.6,4468.1,0.2844]
[1756633700706,1.07349378,4468.5,4468.4,0.4714]
[1756633703320,0.5251,4469.0,4468.4,0.187]
[1756633703517,0.77680458,4468.9,4468.8,0.187]
[1756633703719,0.77680458,4468.9,4468.8,0.4714]
[1756633704114,1.07490458,4468.9,4468.8,0.187]
[1756633704415,0.1958,4468.7,4468.6,0.4714]
[1756633704621,0.4939,4468.7,4468.6,0.4714]
[1756633704823,1.07490458,4468.7,4468.6,0.4714]
[1756633706521,0.77680458,4468.7,4468.6,0.4714]
[1756633706923,1.07490458,4468.7,4468.6,0.4714]
[1756633708724,1.07490458,4468.7,4468.1,0.227]
[1756633708926,1.07490458,4468.6,4468.5,0.187]
[1756633710920,1.07490458,4468.6,4468.5,0.3473]
[1756633713028,0.87910458,4468.6,4468.5,0.3473]
[1756633713326,1.07490458,4468.6,4468.5,0.3473]
[1756633718129,0.2981,4468.6,4468.5,0.3473]
[1756633718330,0.4858,4468.6,4468.5,0.3473]
[1756633725422,0.1877,4467.6,4467.5,3.3948]
[1756633725634,0.4855,4467.6,4467.2,0.227]
[1756633725831,0.4855,4467.6,4467.3,0.1591]
[1756633726333,0.2978,4467.5,4467.2,0.1591]
[1756633726531,0.1877,4467.3,4467.1,0.227]
[1756633726724,0.4855,4467.3,4467.1,0.3861]
[1756633726922,0.4855,4467.2,4467.1,0.5731]
[1756633727124,0.4855,4467.2,4467.0,3.2078]
[1756633727326,0.4855,4467.1,4467.0,3.2078]
[1756633728831,0.4855,4467.1,4466.9,0.227]
[1756633729031,0.4855,4467.1,4466.9,0.3861]
[1756633729032,0.1877,4467.1,4466.9,0.3861]
[1756633729333,0.4855,4467.0,4466.9,0.5731]
[1756633731237,0.4855,4467.0,4466.9,0.60487005]
[1756633731931,0.4855,4467.0,4466.9,0.03177005]
[1756633732939,0.2978,4467.7,4466.9,0.21877005]
[1756633733235,0.4855,4467.1,4467.0,0.3461]
[1756633733436,0.45372995,4467.1,4467.0,0.3461]
[1756633736836,3.0169,4467.8,4467.0,5.087]
[1756633737031,0.47037738,4469.2,4467.9,2.241]
[1756633737232,3.2078,4470.6,4469.2,0.40271]
[1756633737436,0.2978,4470.5,4470.0,3.2078]
[1756633737639,0.2978,4471.1,4470.1,0.43976917]
[1756633737942,0.2978,4471.1,4470.2,0.20976917]
[1756633738143,0.4855,4471.1,4470.8,3.2078]
[1756633738331,0.4855,4471.0,4470.8,3.4378]
[1756633738537,0.4855,4470.9,4470.8,3.4378]
[1756633738844,0.4855,4470.9,4470.8,3.7412396]
[1756633739244,0.4855,4470.9,4470.8,3.4378]
[1756633739946,0.4855,4470.9,4470.8,3.75704526]
[1756633740347,0.4855,4470.9,4470.8,3.4378]
[1756633740545,0.4855,4470.9,4470.8,3.46607534]
[1756633740746,0.4855,4470.9,4470.8,44.26607534]
[1756633740935,0.4855,4470.9,4470.8,44.03607534]
[1756633741246,7.6933,4470.9,4470.8,0.02827534]
[1756633741437,0.2978,4470.8,4470.1,3.2078]
[1756633741642,0.4855,4470.2,4470.1,3.2078]
[1756633742144,0.1877,4469.8,4469.7,40.8]
[1756633742347,0.1877,4469.8,4469.3,3.2078]
[1756633742551,0.1877,4469.5,4469.4,0.23]
[1756633742740,0.1877,4469.5,4469.4,41.0752]
[1756633742941,0.2978,4470.3,4469.5,0.0283]
[1756633743543,0.4855,4470.3,4470.2,0.0735]
[1756633743846,0.2978,4470.9,4470.3,0.0283]
[1756633744042,3.2078,4471.0,4470.3,0.0735]
[1756633744043,0.4855,4470.4,4470.3,0.0735]
[1756633744647,0.4855,4470.4,4470.3,0.23]
[1756633745036,0.4855,4470.4,4470.3,0.2752]
[1756633745243,0.4855,4470.4,4470.3,0.3035]
[1756633748842,0.2749,4470.9,4470.4,0.0285]
[1756633749049,0.4613,4470.9,4470.8,0.0741]
[1756633750840,0.4613,4470.9,4470.8,0.0456]
[1756633751046,0.4613,4470.9,4470.6,0.23]
[1756633751448,3.2078,4471.5,4470.5,3.2078]
[1756633751647,0.1864,4470.6,4470.3,0.23]
[1756633751852,0.4613,4470.5,4470.4,0.23]
[1756633752155,0.1864,4470.5,4469.9,3.2363]
[1756633752352,0.1864,4470.1,4470.0,0.23]
[1756633752653,0.4613,4470.0,4469.9,3.2078]
[1756633753041,0.23,4471.4,4469.5,40.8]
[1756633753042,0.1864,4469.6,4469.5,40.8]
[1756633753247,0.4613,4469.6,4469.5,41.03]
[1756633753946,0.1864,4469.6,4469.5,0.23]
[1756633754147,0.4613,4469.6,4469.5,0.23]
[1756633755051,0.2749,4469.5,4469.4,44.0078]
[1756633755251,0.2749,4469.5,4469.4,44.2378]
[1756633756056,0.4613,4469.5,4469.4,3.4378]
[1756633756244,0.4613,4469.5,4469.4,3.4834]
[1756633756450,0.4613,4469.5,4469.4,3.5119]
[1756633756645,0.2749,4470.2,4469.4,3.5119]
[1756633757257,3.2078,4470.3,4469.4,3.5119]
[1756633758758,0.2749,4470.2,4469.4,3.5119]
[1756633758958,3.2078,4470.3,4469.4,3.5119]
[1756633759156,3.2078,4471.0,4470.1,0.0456]
[1756633759357,0.1864,4470.4,4470.3,0.0741]
[1756633759554,0.4613,4470.4,4470.3,0.0741]
[1756633759854,0.4613,4470.4,4470.3,0.3041]
[1756633760055,0.2749,4470.4,4470.3,0.3041]
[1756633760458,3.2078,4471.0,4470.3,0.3041]
[1756633760654,3.2078,4471.6,4470.8,0.0741]
[1756633760855,3.2078,4471.6,4470.8,0.3041]
[1756633761055,0.2749,4471.5,4470.8,0.3041]
[1756633762266,0.4613,4471.0,4470.9,40.8285]
[1756633764264,0.23,4471.9,4470.9,40.8285]
[1756633764462,0.2749,4471.8,4471.1,3.2078]
[1756633764661,0.4613,4471.2,4471.1,3.5103]
[1756633765869,0.2749,4472.0,4471.1,3.4824]
[1756633766056,0.2749,4471.9,4471.2,0.0279]
[1756633766662,0.4613,4471.9,4471.8,0.0446]
[1756633766867,0.2749,4472.1,4472.0,0.0446]
[1756633767064,0.4613,4472.1,4472.0,0.0725]
[1756633770470,0.1864,4472.1,4472.0,0.23]
[1756633771071,0.4613,4472.1,4472.0,0.23]
[1756633771274,0.4613,4471.9,4471.8,3.2078]
[1756633771468,0.4613,4471.9,4471.4,0.23]
[1756633771670,0.4613,4471.5,4471.4,0.23]
[1756633773277,0.4613,4471.5,4471.4,0.3025]
[1756633773878,0.2749,4472.3,4471.5,0.0279]
[1756633774079,0.4613,4471.7,4471.6,0.3015]
[1756633774977,3.2078,4472.4,4471.6,0.3015]
[1756633775180,3.2078,4472.4,4471.7,0.0279]
[1756633775181,0.2749,4472.3,4471.7,0.0279]
[1756633775480,0.1864,4471.8,4471.7,0.0725]
[1756633775681,0.4613,4471.8,4471.7,0.0725]
[1756633775981,0.2749,4472.3,4471.7,0.0725]
[1756633776174,3.2078,4472.4,4471.8,3.2078]
[1756633776375,0.4613,4472.3,4472.2,0.0725]
[1756633777677,0.4613,4472.3,4472.2,41.1015]
[1756633777879,0.3034,4473.1,4472.3,0.0291]
[1756633780891,0.1848,4472.4,4472.3,0.0757]
[1756633781096,0.4882,4472.4,4472.3,3.5125]
[1756633781294,0.4882,4472.4,4472.3,3.4368]
[1756633781489,0.4882,4472.4,4472.2,40.8]
[1756633781693,0.1848,4472.1,4472.0,0.229]
[1756633781890,0.1848,4471.9,4471.8,3.2078]
[1756633782094,0.4882,4471.9,4471.8,3.4368]
[1756633782393,0.4882,4471.9,4471.8,44.2368]
[1756633782994,0.4882,4471.9,4471.8,3.4368]
[1756633783195,0.4882,4471.9,4471.8,3.4834]
[1756633783598,0.4882,4471.9,4471.8,3.5125]
[1756633786388,3.2078,4472.7,4471.8,3.5125]
[1756633786389,0.3034,4472.3,4471.8,3.5125]
[1756633786594,0.3034,4472.6,4471.9,0.0291]
[1756633786794,0.1848,4472.1,4472.0,0.2756]
[1756633787099,0.4882,4472.1,4472.0,0.3047]
[1756633787598,0.3034,4473.1,4472.1,0.0291]
[1756633787797,0.3034,4473.1,4471.8,3.61027]
[1756633787798,0.3034,4473.1,4472.6,3.2369]
[1756633788002,0.3034,4473.7,4472.7,0.2581]
[1756633788297,0.4882,4473.5,4473.4,0.0466]
[1756633788498,0.4882,4473.5,4473.4,0.3047]
[1756633788801,3.2078,4474.0,4473.4,0.2756]
[1756633789094,0.3034,4473.8,4473.5,40.8]
[1756633789302,0.4882,4473.6,4473.5,40.8]
[1756633789500,0.4882,4473.6,4473.5,41.0581]
[1756633790090,0.1848,4473.6,4473.5,41.0581]
[1756633790298,0.3034,4474.4,4473.5,41.029]
[1756633790604,0.3034,4474.4,4473.7,3.2078]
[1756633790798,0.4882,4474.3,4474.2,0.0466]
[1756633791600,0.4882,4474.3,4474.2,0.0757]
[1756633791898,0.1848,4473.8,4473.7,3.2078]
[1756633792097,0.4882,4473.8,4473.7,3.4368]
[1756633793203,0.4882,4473.8,4473.7,3.2078]
[1756633793399,0.4882,4473.8,4473.7,3.4368]
[1756633794197,0.4882,4473.8,4473.7,3.2078]
[1756633794403,0.4882,4473.8,4473.7,3.4368]
[1756633795201,0.4882,4473.8,4473.7,3.2078]
[1756633795396,4.40833,4473.8,4473.0,3.2078]
[1756633795597,0.3034,4473.3,4473.2,0.0757]
[1756633795799,0.3034,4473.9,4473.3,0.0291]
[1756633795999,0.1848,4473.6,4473.5,0.0757]
[1756633796301,0.4882,4473.6,4473.5,0.3047]
[1756633797400,0.4882,4473.6,4473.1,0.0291]
[1756633797603,0.1848,4473.3,4473.2,0.229]
[1756633797801,0.4882,4473.3,4473.2,0.229]
[1756633798503,0.4882,4473.3,4473.2,0.2756]
[1756633798705,0.4882,4473.3,4473.2,0.3047]
[1756633800009,0.4882,4473.9,4473.8,0.0466]
[1756633800199,0.4882,4473.9,4473.8,0.3047]
[1756633800405,0.3034,4473.9,4473.8,0.3047]
[1756633800603,0.4882,4473.9,4473.8,0.3047]
[1756633801205,0.4882,4473.9,4473.8,0.2756]
[1756633801602,3.2078,4474.6,4473.8,0.229]
[1756633801903,0.1848,4473.1,4473.0,40.8291]
[1756633802105,0.1848,4473.1,4473.0,41.0581]
[1756633802312,0.4882,4473.1,4473.0,41.0581]
[1756633803008,0.3034,4474.4,4473.1,0.0291]
[1756633803310,0.3034,4474.4,4473.2,0.229]
[1756633803702,0.1848,4473.6,4473.5,3.2544]
[1756633803907,0.4882,4473.6,4473.5,0.3047]
[1756633804306,0.3034,4474.0,4473.5,3.5125]
[1756633804509,0.3034,4474.4,4473.6,0.0291]
[1756633804808,0.4882,4474.4,4474.3,0.0757]
[1756633805012,0.4882,4474.4,4474.3,0.3047]
[1756633806506,0.4882,4474.4,4474.3,0.2756]
[1756633806708,0.4882,4474.4,4474.3,0.229]
[1756633807810,0.4882,4474.4,4474.0,0.0291]
[1756633808013,0.4882,4474.4,4474.1,0.229]
[1756633808508,3.2078,4474.5,4474.1,0.229]
[1756633808509,0.2859,4474.3,4474.2,40.8]
[1756633811813,0.2859,4474.3,4474.2,40.8286]
[1756633814609,3.4937,4474.5,4474.4,0.0743]
[1756633814915,3.6861,4474.5,4474.4,0.3033]
[1756633816118,0.4783,4474.5,4474.4,0.3033]
[1756633816309,0.229,4475.0,4474.4,0.3033]
[1756633816310,3.2078,4475.1,4474.4,0.3033]
[1756633816513,0.4783,4475.0,4474.9,0.0457]
[1756633816715,0.4783,4475.0,4474.9,0.3033]
[1756633817717,0.2859,4475.0,4474.9,0.3033]
[1756633817913,3.2078,4475.1,4475.0,0.0743]
[1756633819111,0.2859,4475.3,4475.0,0.0743]
[1756633819316,3.6861,4475.7,4475.6,0.0457]
[1756633819615,0.4783,4475.7,4475.6,0.3033]
[1756633819817,3.2078,4476.7,4475.6,41.1033]
[1756633820017,0.85013372,4476.6,4475.7,0.0286]
[1756633820323,0.2859,4476.6,4475.7,0.0286]
[1756633820521,3.4368,4476.7,4475.8,3.2078]
[1756633820816,0.4783,4476.0,4475.9,0.3033]
[1756633822028,0.2859,4476.6,4475.9,0.3033]
[1756633822330,0.4783,4476.0,4475.9,0.3033]
[1756633822820,0.4783,4476.0,4475.9,0.229]
[1756633823528,0.4783,4476.0,4475.9,0.0457]
[1756633823826,0.4783,4476.0,4475.9,0.3024]
[1756633824224,0.4783,4476.0,4475.9,0.0744]
[1756633824423,0.4783,4476.0,4475.9,0.3024]
[1756633827531,0.4783,4475.9,4475.6,40.8]
[1756633827831,0.4783,4475.9,4475.7,0.228]
[1756633831329,0.4783,4475.9,4475.8,0.0746]
[1756633831523,0.4783,4475.9,4475.8,3.2824]
[1756633832935,0.4783,4475.9,4475.8,3.4358]
[1756633834635,0.2859,4475.9,4475.8,3.5104]
[1756633837532,0.4783,4475.9,4475.8,3.5104]
[1756633838335,0.4783,4475.9,4475.8,3.4358]
[1756633840137,0.4783,4475.9,4475.8,3.2078]
[1756633840339,0.4783,4475.9,4475.8,3.4358]
[1756633840736,0.4783,4475.9,4475.8,3.2078]
[1756633840938,0.4783,4475.9,4475.8,3.4358]
[1756633846530,0.4783,4475.9,4475.8,3.2078]
[1756633846736,0.4783,4475.9,4475.7,0.228]
[1756633847042,0.4779,4475.9,4475.8,0.0734]
[1756633851937,3.4358,4476.6,4475.8,0.0734]
[1756633851938,3.2078,4476.6,4475.8,0.0734]
[1756633852237,0.1871,4476.0,4475.9,0.0734]
[1756633852543,0.4726,4476.0,4475.9,0.0734]
[1756633852933,0.2855,4476.0,4475.9,0.0734]
[1756633853444,3.2078,4476.6,4475.9,0.0734]
[1756633853644,0.4726,4476.1,4476.0,0.3014]
[1756633857347,0.4726,4476.1,4476.0,0.228]
[1756633857744,3.2078,4476.6,4475.7,0.227]
[1756633858049,0.2855,4475.7,4475.6,3.2078]
[1756633858346,0.1871,4475.5,4475.4,0.227]
[1756633858650,0.4726,4475.5,4475.4,0.227]
[1756633859749,0.4726,4475.5,4475.1,44.0078]
[1756633859947,0.1871,4475.3,4475.2,0.227]
[1756633860147,0.4726,4475.3,4475.2,0.227]
[1756633860549,0.1871,4474.7,4474.6,3.2078]
[1756633860843,0.1871,4474.7,4474.1,3.2078]
[1756633861042,0.4726,4474.2,4474.1,3.2078]
[1756633861751,0.4726,4474.2,4474.1,3.5092]
[1756633861946,0.4726,4474.2,4474.1,3.4358]
[1756633862351,0.4726,4474.2,4474.1,3.2078]
[1756633863144,0.4726,4474.2,4474.1,3.2806]
[1756633863344,3.2078,4475.0,4474.1,3.2806]
[1756633863345,0.2855,4474.9,4474.2,0.028]
[1756633863550,0.4726,4474.9,4474.8,0.0448]
[1756633863751,0.4726,4474.9,4474.4,0.028]
[1756633864151,0.4726,4474.9,4474.3,0.256]
[1756633864545,0.1871,4474.2,4474.1,3.2078]
[1756633864749,0.2855,4474.7,4473.9,0.228]
[1756633864953,0.4726,4473.9,4473.8,0.228]
[1756633865252,0.1871,4473.9,4473.6,3.2078]
[1756633865452,3.2078,4475.0,4473.6,3.2078]
[1756633865453,0.4726,4473.8,4473.7,0.228]
[1756633865756,0.4726,4473.8,4473.7,0.3008]
[1756633867460,0.4726,4473.7,4473.6,3.2806]
[1756633867653,0.4726,4473.7,4473.6,3.5086]
[1756633868553,0.4726,4473.7,4473.6,3.2078]
[1756633868757,0.2855,4473.7,4473.6,3.5084]
[1756633869057,0.2773,4474.8,4473.7,0.0283]
[1756633869358,0.4714,4474.0,4473.9,0.0736]
[1756633870260,0.1941,4473.7,4473.6,3.2814]
[1756633870459,0.4714,4473.7,4473.6,3.5094]
[1756633871455,0.2773,4473.7,4473.6,3.5094]
[1756633872058,3.2078,4475.0,4473.7,0.0283]
[1756633872259,0.4714,4473.9,4473.8,0.3006]
[1756633872459,0.4714,4473.9,4473.8,0.227]
[1756633872659,0.4714,4473.7,4473.6,3.2078]
[1756633872957,0.4714,4473.7,4473.6,3.4348]
[1756633874164,0.4714,4473.7,4473.6,3.2078]
[1756633874351,0.4714,4473.7,4473.6,3.4348]
[1756633874956,0.4714,4473.7,4473.6,3.2814]
[1756633875157,0.4714,4473.7,4473.6,3.5084]
[1756633875962,0.4714,4473.7,4473.6,3.4801]
[1756633877159,0.4714,4473.7,4473.6,3.2531]
[1756633877359,0.4714,4473.7,4473.6,3.2078]
[1756633877560,0.4714,4473.7,4473.6,3.4348]
[1756633879067,0.4714,4473.7,4473.6,3.4801]
[1756633880062,0.4714,4473.7,4473.6,3.4348]
[1756633882865,0.4714,4473.7,4473.1,40.8]
[1756633882866,0.1941,4473.1,4473.0,3.2078]
[1756633883070,0.4714,4473.1,4473.0,3.2078]
[1756633883963,0.4714,4473.1,4473.0,3.2531]
[1756633884169,0.4714,4473.1,4473.0,3.2814]
[1756633885976,0.4714,4473.1,4473.0,3.2531]
[1756633886269,0.4714,4473.1,4473.0,3.2078]
[1756633886470,0.4714,4473.1,4473.0,3.2533]
[1756633887769,0.4714,4473.1,4473.0,3.2078]
[1756633888176,0.4714,4473.1,4472.5,3.4348]
[1756633888375,0.1941,4472.7,4472.6,0.0739]
[1756633888680,0.4714,4472.7,4472.6,0.0739]
[1756633889582,3.2078,4473.5,4472.6,0.0739]
[1756633889583,0.2773,4473.4,4472.6,0.0455]
[1756633889780,0.4714,4473.4,4473.3,0.0739]
[1756633893282,0.4714,4473.4,4473.3,0.0455]
[1756633893580,0.4714,4473.4,4473.3,0.0739]
[1756633896781,0.4714,4473.4,4472.8,0.0284]
[1756633896976,0.4714,4473.4,4472.7,0.227]
[1756633897484,0.4714,4473.4,4472.8,0.0284]
[1756633897679,0.22356,4473.3,4472.0,3.2078]
[1756633897983,3.4348,4473.5,4472.0,3.2078]
[1756633897984,0.4733,4472.1,4472.0,3.6597]
[1756633898379,0.4733,4472.8,4472.7,0.1976]
[1756633898585,0.4733,4472.8,4472.7,0.4519]
[1756633899281,0.4733,4472.8,4472.1,0.2543]
[1756633899282,0.19,4472.8,4472.1,0.2543]
[1756633899480,0.4733,4472.1,4472.0,3.2078]
[1756633899681,3.4348,4473.0,4472.0,3.62899]
[1756633899682,0.2833,4472.9,4472.0,3.62899]
[1756633899885,0.2833,4472.9,4472.1,0.2543]
[1756633901885,0.19,4472.2,4472.1,0.4519]
[1756633902079,0.4733,4472.2,4472.1,0.4519]
[1756633903283,0.2833,4472.9,4472.2,0.2543]
[1756633903480,0.2833,4472.9,4472.8,0.4519]
[1756633904878,0.4733,4472.9,4472.8,0.4519]
[1756633906286,0.5103,4473.5,4472.9,0.2543]
[1756633906881,0.5103,4473.5,4472.9,0.4519]
[1756633906882,0.19,4473.0,4472.9,0.4519]
[1756633907083,0.4733,4473.0,4472.9,0.4519]
[1756633908483,0.19,4473.5,4473.4,0.1976]
[1756633908785,0.4733,4473.5,4473.4,0.4519]
[1756633913487,0.4733,4474.0,4473.9,0.1976]
[1756633913689,0.4733,4474.0,4473.9,0.4519]
[1756633919191,0.4733,4474.0,4473.4,40.8]
[1756633919494,0.4733,4473.4,4473.3,3.2078]
[1756633920288,0.2833,4473.4,4473.3,3.6597]
[1756633920492,0.2833,4473.8,4473.7,0.1976]
[1756633920699,0.2833,4473.8,4473.7,0.4519]
[1756633921293,0.4733,4473.8,4473.7,0.4519]
[1756633922299,0.4733,4473.8,4473.7,0.1976]
[1756633923095,0.2833,4473.7,4473.3,3.2078]
[1756633923295,0.4733,4473.4,4473.3,3.2078]
[1756633923800,0.19,4473.4,4472.6,3.4621]
[1756633923996,0.4733,4472.7,4472.6,3.8867]
[1756633924299,0.4733,4472.7,4472.6,44.6867]
[1756633925500,0.2833,4473.5,4472.7,0.2543]
[1756633931005,0.2833,4473.5,4472.8,0.227]
[1756633931205,0.19,4472.9,4472.8,0.6793]
[1756633931401,0.477,4472.9,4472.8,0.6793]
[1756633933903,3.2078,4473.6,4472.9,0.2547]
[1756633934108,0.4755,4473.5,4473.4,0.4387]
[1756633934306,0.4755,4473.5,4473.0,0.227]
[1756633934510,0.4755,4473.5,4473.1,0.2547]
[1756633934810,0.4755,4473.5,4473.0,0.227]
[1756633935213,0.4755,4473.5,4473.1,0.2547]
[1756633935510,0.4755,4473.5,4473.0,0.227]
[1756633935712,0.4755,4473.5,4473.1,0.2547]
[1756633935905,0.4755,4473.5,4473.0,0.227]
[1756633936102,3.2078,4473.6,4473.5,0.2547]
[1756633936307,0.514,4474.5,4473.6,0.2547]
[1756633936508,0.4755,4473.7,4473.6,0.4387]
[1756633938008,0.514,4474.5,4473.7,0.2547]
[1756633938213,0.57098803,4474.4,4473.7,0.2547]
[1756633938512,0.287,4474.4,4473.7,0.2547]
[1756633938715,0.4755,4474.4,4474.3,0.184]
[1756633939013,1.04616589,4474.4,4474.3,0.4387]
[1756633939206,0.4755,4474.4,4474.3,0.4387]
[1756633943710,3.2078,4474.6,4474.3,0.4387]
[1756633943916,3.2078,4474.6,4474.5,0.184]
[1756633944111,3.3963,4474.6,4474.5,0.4388]
[1756633944617,3.6833,4474.6,4474.5,0.4388]
[1756633945218,0.4755,4474.6,4474.5,3.6466]
[1756633945518,0.4755,4475.0,4474.9,0.184]
[1756633945707,0.4755,4475.0,4474.9,0.4388]
[1756633946115,0.4755,4475.0,4474.6,0.2548]
[1756633947120,0.4755,4475.0,4474.5,0.227]
[1756633947315,0.4755,4475.0,4474.6,0.2548]
[1756633947612,0.4755,4475.0,4474.5,0.227]
[1756633947819,0.4755,4475.0,4474.6,41.0548]
[1756633948116,0.4755,4474.7,4474.6,41.0548]
[1756633949212,0.4755,4474.7,4474.5,0.227]
[1756633953116,0.4755,4474.6,4474.5,0.4818]
[1756633953506,0.4755,4474.6,4474.5,0.6658]
[1756633955509,0.4755,4474.6,4474.5,0.4388]
[1756633958316,0.4985,4475.0,4474.9,0.2015]
[1756633958516,0.4985,4475.0,4474.9,0.4569]
[1756633959221,0.4985,4475.0,4474.9,0.2015]
[1756633959918,0.4985,4475.0,4474.9,0.4569]
[1756633960809,0.4985,4475.0,4474.6,0.2554]
[1756633963825,0.4985,4475.0,4474.4,0.227]
[1756633964324,0.4985,4475.0,4474.5,0.2554]
[1756633964625,0.4985,4475.0,4474.9,0.4569]